bitfinex-derivatives/quotes_ETHF0:USTF0_20250416
["timestamp","ask_amount","ask_price","bid_price","bid_amount"]
[1744794369142,1.26929,1575.8,1575.7,2.90443]
[1744794369435,1.26927,1575.9,1575.8,1.26929]
[1744794369942,1.2692,1576.0,1575.9,1.26921]
[1744794371146,2.96562,1576.1,1576.0,1.26913]
[1744794371344,1.6965,1576.1,1576.0,1.26913]
[1744794371656,0.00952502,1576.2,1576.1,1.26905]
[1744794371846,0.00952502,1576.2,1576.1,3.03695]
[1744794372031,2.96521,1576.6,1576.5,1.26873]
[1744794372437,2.11568,1576.9,1576.5,3.17183]
[1744794372644,1.26857,1576.7,1576.6,2.93479]
[1744794372839,1.6671,1576.8,1576.2,3.2078]
[1744794373045,0.8472,1576.9,1576.3,4.83841]
[1744794373347,0.00952502,1576.7,1576.4,3.2078]
[1744794373549,0.00952502,1576.7,1576.6,1.26865]
[1744794374148,1.27809502,1576.7,1576.6,1.26865]
[1744794374448,0.00952502,1576.7,1576.6,1.26865]
[1744794374839,1.27809502,1576.7,1576.6,1.26865]
[1744794375249,1.27816502,1576.7,1576.5,1.6662]
[1744794375545,1.26865,1576.6,1576.5,2.93487]
[1744794375747,1.26865,1576.6,1576.5,1.6662]
[1744794375945,2.88095,1576.6,1576.5,42.4662]
[1744794376144,1.26873,1576.5,1576.4,3.2078]
[1744794376339,2.88103,1576.5,1576.4,3.2078]
[1744794376541,1.26881,1576.4,1576.3,0.00952502]
[1744794376744,1.26913,1576.0,1575.9,3.2078]
[1744794376947,6.26913,1576.0,1575.9,3.2078]
[1744794377545,2.88143,1576.0,1575.9,3.2078]
[1744794377736,2.88143,1576.0,1575.9,4.47701]
[1744794377939,2.88143,1576.0,1575.9,3.2078]
[1744794378239,2.88143,1576.0,1575.9,4.47701]
[1744794378434,2.88143,1576.0,1575.9,4.8364]
[1744794379246,2.88143,1576.0,1575.9,3.2078]
[1744794379443,7.88143,1576.0,1575.9,3.2078]
[1744794379642,2.88143,1576.0,1575.9,3.2078]
[1744794380050,1.26921,1575.9,1575.8,2.90735502]
[1744794380242,1.26921,1575.9,1575.8,1.63812502]
[1744794381154,1.26921,1575.9,1575.8,2.90741502]
[1744794381343,1.26921,1575.9,1575.8,1.63812502]
[1744794381638,1.26921,1575.9,1575.8,2.90741502]
[1744794382151,1.26921,1575.9,1575.8,1.63812502]
[1744794382745,1.26921,1575.9,1575.8,2.90741502]
[1744794383255,1.26921,1575.9,1575.8,0.00952502]
[1744794383649,1.26921,1575.9,1575.8,1.27881502]
[1744794383844,2.97121,1575.9,1575.8,0.00952502]
[1744794386251,2.97121,1575.9,1575.8,1.27881502]
[1744794386848,2.97121,1575.9,1575.8,0.00952502]
[1744794387049,1.26921,1575.9,1575.8,1.27881502]
[1744794387546,1.26921,1575.9,1575.8,0.00952502]
[1744794387742,1.26921,1575.9,1575.8,1.27881502]
[1744794388146,1.26921,1575.9,1575.8,0.00952502]
[1744794388447,1.26921,1575.9,1575.8,1.27881502]
[1744794389651,1.26907,1576.2,1576.1,1.26901]
[1744794389856,1.26907,1576.2,1576.1,1.6478]
[1744794390048,3.00317,1576.2,1576.1,1.6478]
[1744794390249,1.26913,1576.0,1575.9,4.057]
[1744794390449,1.26913,1576.0,1575.9,1.26921]
[1744794390656,1.2691,1576.1,1576.0,1.26913]
[1744794390851,1.26903,1576.2,1576.1,1.26897]
[1744794391051,1.26903,1576.2,1576.1,2.93287]
[1744794391655,2.89493,1576.2,1576.1,2.93287]
[1744794392861,0.8131,1576.4,1576.1,4.83639]
[1744794393059,5.35323,1576.6,1576.5,1.26873]
[1744794393257,3.17183,1576.5,1576.2,2.4779]
[1744794393555,1.26921,1575.9,1575.8,3.21732502]
[1744794393762,3.17232,1576.3,1576.0,1.26908]
[1744794393959,1.26913,1576.0,1575.9,2.89385]
[1744794394554,1.35503255,1576.0,1575.9,2.89385]
[1744794397154,1.26892,1576.3,1576.2,1.26897]
[1744794397355,4.748,1576.4,1576.3,1.26881]
[1744794397356,1.26884,1576.4,1576.3,1.26881]
[1744794397658,1.26874,1576.6,1576.5,1.2687]
[1744794397863,2.96094,1576.6,1576.5,1.2687]
[1744794398058,1.6922,1576.6,1576.5,1.2687]
[1744794398361,1.27818502,1576.7,1576.6,1.26865]
[1744794398861,1.26865,1576.6,1576.5,2.92816]
[1744794399063,1.26865,1576.6,1576.5,1.6595]
[1744794399366,1.26865,1576.6,1576.5,2.92823]
[1744794399560,1.26865,1576.6,1576.4,0.8778]
[1744794399751,2.88783,1576.5,1576.4,1.7111]
[1744794399951,2.88783,1576.5,1576.3,4.0792]
[1744794399952,1.26881,1576.4,1576.3,1.26885]
[1744794400154,2.88791,1576.4,1576.3,1.7111]
[1744794400458,1.26889,1576.3,1576.2,6.01192]
[1744794400661,2.88799,1576.3,1576.2,7.72302]
[1744794400865,2.88799,1576.3,1576.2,6.4541]
[1744794401162,2.88799,1576.3,1576.2,4.743]
[1744794401362,2.88799,1576.3,1576.2,6.01197]
[1744794401566,2.88799,1576.3,1576.2,7.72307]
[1744794402462,1.6191,1576.3,1576.2,2.98007]
[1744794402663,2.0947,1576.5,1576.4,1.26881]
[1744794402865,1.26881,1576.4,1576.3,2.86463]
[1744794403961,2.92381,1576.4,1576.3,2.86463]
[1744794404865,1.655,1576.4,1576.3,2.86463]
[1744794405066,2.92381,1576.4,1576.3,2.86463]
[1744794405761,1.26881,1576.4,1576.3,2.86463]
[1744794405960,1.26881,1576.4,1576.3,1.5958]
[1744794406161,1.26889,1576.3,1576.2,1.26892]
[1744794406363,3.03229,1576.3,1576.2,1.26892]
[1744794406663,3.03229,1576.3,1576.2,3.01632]
[1744794407755,7.16994,1576.5,1576.3,1.26889]
[1744794407756,1.26888,1576.4,1576.3,1.26889]
[1744794408768,1.26888,1576.4,1576.3,3.02739]
[1744794409366,1.7634,1576.5,1576.4,1.26881]
[1744794409560,1.7634,1576.5,1576.4,3.02731]
[1744794409864,1.26873,1576.5,1576.4,3.02731]
[1744794410066,1.26869,1576.6,1576.5,1.26867]
[1744794410367,1.26869,1576.6,1576.5,2.5895]
[1744794410568,2.88959,1576.6,1576.5,2.5895]
[1744794411069,2.88959,1576.6,1576.5,3.85823]
[1744794411456,2.88959,1576.6,1576.5,2.5895]
[1744794413066,2.88959,1576.6,1576.5,3.85823]
[1744794414770,2.88959,1576.6,1576.5,2.5895]
[1744794415072,2.88959,1576.6,1576.5,3.85823]
[1744794415469,2.88959,1576.6,1576.3,8.8014]
[1744794415676,1.26897,1576.3,1576.2,1.26891]
[1744794415866,1.26897,1576.2,1576.1,6.01099]
[1744794416065,2.97347,1576.2,1576.1,4.742]
[1744794416565,1.26905,1576.1,1576.0,6.11636]
[1744794416765,2.97355,1576.1,1576.0,6.11636]
[1744794416975,3.05945255,1576.1,1576.0,6.11636]
[1744794417274,3.05945255,1576.1,1576.0,4.47686]
[1744794417468,3.05945255,1576.1,1576.0,3.2078]
[1744794417661,3.05945255,1576.1,1576.0,4.47693]
[1744794417866,3.05945255,1576.1,1576.0,3.2078]
[1744794418065,3.05945255,1576.1,1576.0,4.47693]
[1744794418275,1.79040255,1576.1,1576.0,4.47693]
[1744794418470,1.79040255,1576.1,1576.0,6.18393]
[1744794418774,0.08590255,1576.1,1576.0,6.18393]
[1744794419371,1.35495255,1576.1,1576.0,6.18393]
[1744794420175,0.08590255,1576.1,1576.0,6.18393]
[1744794420570,1.35495255,1576.1,1576.0,6.18393]
[1744794421075,0.08590255,1576.1,1576.0,6.18393]
[1744794421374,1.35495255,1576.1,1576.0,6.18393]
[1744794422073,0.08590255,1576.1,1576.0,6.18393]
[1744794422480,1.27816502,1576.7,1576.6,1.26865]
[1744794422681,1.73002502,1576.7,1576.6,1.26865]
[1744794422976,0.00952502,1576.7,1576.6,4.47645]
[1744794423171,1.27809502,1576.7,1576.6,6.01165]
[1744794423365,1.73002502,1576.7,1576.6,7.66015]
[1744794423567,0.00952502,1576.7,1576.6,7.66015]
[1744794423877,1.27809502,1576.7,1576.6,7.66015]
[1744794424272,1.27809502,1576.7,1576.6,48.46015]
[1744794424879,0.00952502,1576.7,1576.6,48.46015]
[1744794425672,3.16998,1577.5,1576.9,6.34204]
[1744794425879,1.6286,1577.2,1577.1,4.47605]
[1744794426180,1.26809,1577.3,1577.2,1.2681]
[1744794426371,2.89669,1577.3,1577.2,3.0372]
[1744794427078,0.85862502,1577.4,1577.3,1.26809]
[1744794427278,0.00952502,1577.4,1577.3,1.26809]
[1744794427577,1.27753502,1577.4,1577.3,1.26809]
[1744794427977,0.00952502,1577.4,1577.3,1.26809]
[1744794428170,1.27753502,1577.4,1577.3,1.26809]
[1744794428365,1.27753502,1577.4,1577.2,1.7691]
[1744794428366,1.26809,1577.3,1577.2,1.7691]
[1744794428576,1.6296,1577.3,1577.2,3.03727]
[1744794428981,2.89769,1577.3,1577.2,3.03727]
[1744794429167,0.00952502,1577.4,1577.3,1.26809]
[1744794429371,0.00952502,1577.4,1577.3,6.16839]
[1744794430078,0.00952502,1577.4,1577.3,2.96059]
[1744794430280,0.00952502,1577.4,1577.3,6.16839]
[1744794430469,1.27753502,1577.4,1577.3,2.96059]
[1744794431283,1.27753502,1577.4,1577.3,1.6925]
[1744794431484,1.26809,1577.3,1577.2,6.00411]
[1744794431691,1.26817,1577.2,1577.1,10.90280502]
[1744794431979,2.86867,1577.3,1577.2,1.26817]
[1744794432681,2.86867,1577.3,1577.2,2.94947]
[1744794432882,2.86867,1577.3,1577.2,1.6813]
[1744794433581,1.26817,1577.2,1577.1,0.00952502]
[1744794433776,3.00027,1577.2,1577.1,1.27777502]
[1744794433976,3.17960502,1577.4,1577.1,3.21732502]
[1744794433977,0.00952502,1577.4,1577.1,3.21732502]
[1744794434183,3.00969502,1577.4,1577.3,1.26809]
[1744794434384,1.26809,1577.3,1577.2,2.9627]
[1744794435385,1.26817,1577.2,1577.1,4.48550502]
[1744794435585,3.00027,1577.2,1577.1,6.18010502]
[1744794436988,3.00027,1577.2,1577.1,0.00952502]
[1744794437183,1.7321,1577.2,1577.1,1.27777502]
[1744794437393,0.00952502,1577.4,1577.1,0.00952502]
[1744794437582,0.00952502,1577.4,1577.3,1.26809]
[1744794438085,1.27753502,1577.4,1577.3,1.26809]
[1744794438282,0.00952502,1577.4,1577.3,6.12549]
[1744794438475,0.09542757,1577.4,1577.3,6.12549]
[1744794438878,1.36343757,1577.4,1577.3,6.12549]
[1744794439083,0.09542757,1577.4,1577.3,2.91769]
[1744794439683,0.09542757,1577.4,1577.3,6.12549]
[1744794439882,1.36343757,1577.4,1577.3,6.12549]
[1744794440083,1.82092757,1577.4,1577.3,6.12549]
[1744794440484,0.09542757,1577.4,1577.3,6.12549]
[1744794441384,1.7255,1577.7,1577.6,1.26784]
[1744794441585,4.47552,1577.8,1577.7,1.26776]
[1744794442289,4.47552,1577.8,1577.7,3.03636]
[1744794442483,4.47552,1577.8,1577.7,1.7686]
[1744794442994,1.26776,1577.7,1577.6,2.1047]
[1744794443291,3.01086,1577.7,1577.6,3.8733]
[1744794443494,1.7431,1577.7,1577.6,44.6733]
[1744794443792,3.2078,1577.8,1577.7,1.26776]
[1744794443992,3.2078,1577.8,1577.7,3.03636]
[1744794444192,4.47548,1577.8,1577.7,3.03636]
[1744794445483,1.26788,1577.6,1577.5,1.26784]
[1744794445684,2.94939,1577.7,1577.6,1.26776]
[1744794445992,2.94939,1577.7,1577.6,43.74156]
[1744794446591,2.94939,1577.7,1577.6,42.4738]
[1744794446784,2.94939,1577.7,1577.6,40.8]
[1744794447283,4.58069,1577.7,1577.6,40.8]
[1744794447492,1.26793,1577.5,1577.4,1.26793]
[1744794447883,2.94953,1577.5,1577.4,1.26793]
[1744794448084,2.94953,1577.5,1577.4,40.8]
[1744794448288,2.94953,1577.5,1576.6,15.26799023]
[1744794448289,1.26817,1577.2,1577.0,4.0476]
[1744794448489,1.6674,1577.4,1577.0,8.94165]
[1744794448686,1.6674,1577.3,1577.2,1.26817]
[1744794448993,2.93549,1577.3,1577.2,42.06817]
[1744794449387,1.6674,1577.3,1577.2,42.06817]
[1744794449790,2.93549,1577.3,1577.2,40.8]
[1744794449989,6.14329,1577.3,1577.2,40.8]
[1744794450289,7.93549,1577.3,1577.2,40.8]
[1744794450490,7.93549,1577.3,1577.1,0.00952502]
[1744794450491,1.26817,1577.2,1577.1,0.00952502]
[1744794450694,2.93557,1577.2,1577.1,1.27777502]
[1744794450989,0.875,1577.3,1577.2,1.26817]
[1744794451185,2.93544,1577.4,1577.3,1.26809]
[1744794451380,2.14288,1577.6,1577.5,1.26793]
[1744794451594,3.86068,1577.6,1577.5,1.26793]
[1744794452193,1.7178,1577.6,1577.5,1.26793]
[1744794452597,1.7178,1577.6,1577.5,2.91823]
[1744794453598,2.98564,1577.6,1577.5,2.91823]
[1744794454397,2.98564,1577.6,1577.5,1.6503]
[1744794454986,1.26793,1577.5,1577.4,5.29584]
[1744794455190,2.98293,1577.5,1577.4,6.93504]
[1744794455492,1.26791,1577.6,1577.5,1.26793]
[1744794455692,2.98291,1577.6,1577.5,2.90713]
[1744794456099,1.26791,1577.6,1577.5,2.90713]
[1744794456700,2.98291,1577.6,1577.5,2.90713]
[1744794457102,2.98291,1577.6,1577.5,1.6392]
[1744794457304,1.26793,1577.5,1577.4,3.2078]
[1744794457601,2.92083,1577.5,1577.4,4.47581]
[1744794459694,2.92083,1577.5,1577.4,6.10681]
[1744794459901,2.92083,1577.5,1577.4,2.89901]
[1744794460702,3.00673255,1577.5,1577.4,2.89901]
[1744794461096,1.26801,1577.4,1577.3,2.09753]
[1744794461296,3.01191,1577.4,1577.3,2.09753]
[1744794461602,1.7439,1577.4,1577.3,2.09753]
[1744794461905,1.82980255,1577.4,1577.3,3.69293]
[1744794462097,3.09781255,1577.4,1577.3,3.69293]
[1744794462492,1.82980255,1577.4,1577.3,3.69293]
[1744794462688,3.09781255,1577.4,1577.3,3.69293]
[1744794464405,1.82980255,1577.4,1577.3,3.69293]
[1744794465102,3.09781255,1577.4,1577.3,3.69293]
[1744794465492,1.82980255,1577.4,1577.3,3.69293]
[1744794465691,0.08590255,1577.4,1577.3,3.69293]
[1744794466195,1.35391255,1577.4,1577.3,3.69293]
[1744794467101,1.26809,1577.3,1577.2,4.47591]
[1744794467296,2.98209,1577.3,1577.2,4.47591]
[1744794467496,1.26817,1577.2,1577.1,42.07771502]
[1744794467805,0.08590255,1577.2,1577.1,42.07777502]
[1744794468001,0.08590255,1577.2,1577.1,50.73697692]
[1744794469199,0.08590255,1577.2,1577.1,50.73693835]
[1744794469603,0.08590255,1577.2,1577.1,50.27657502]
[1744794469799,0.08590255,1577.2,1577.1,50.73696303]
[1744794471205,0.08590255,1577.2,1577.1,50.73691642]
[1744794472905,0.08590255,1577.2,1577.1,50.73694111]
[1744794473110,2.09854,1577.6,1577.5,1.26793]
[1744794473302,3.73804,1577.6,1577.5,1.26793]
[1744794473503,3.73804,1577.6,1577.5,2.90973]
[1744794474512,3.73804,1577.6,1577.5,1.26793]
[1744794474814,2.4702,1577.6,1577.5,1.26793]
[1744794475013,0.8164,1577.8,1577.7,1.26776]
[1744794475214,3.72358,1577.8,1577.7,1.26776]
[1744794475418,2.4559,1577.8,1577.7,2.90956]
[1744794475608,0.00952502,1577.9,1577.8,1.26768]
[1744794475809,0.00952502,1577.9,1577.8,2.86838]
[1744794476410,1.67142502,1577.9,1577.8,2.86838]
[1744794476911,0.00952502,1577.9,1577.8,2.86838]
[1744794477521,1.6619,1578.2,1578.1,1.26744]
[1744794478511,1.6619,1578.2,1578.1,2.86814]
[1744794478711,0.00952502,1578.3,1578.2,1.26732]
[1744794478902,1.63526474,1578.3,1578.2,1.26732]
[1744794479313,0.00026474,1578.3,1578.2,42.06732]
[1744794480110,0.00026474,1578.3,1578.2,45.27512]
[1744794482320,0.08616729,1578.3,1578.2,45.27512]
[1744794482709,4.47483,1578.7,1578.6,1.26704]
[1744794483119,4.47476,1578.7,1578.6,1.26704]
[1744794483316,1.26707,1578.6,1578.4,4.01623]
[1744794483509,2.98407,1578.6,1578.5,1.26706]
[1744794484413,1.717,1578.6,1578.5,1.26706]
[1744794484613,4.47483,1578.7,1578.6,1.26704]
[1744794484818,6.16323,1578.7,1578.6,1.26704]
[1744794485816,4.8962,1578.7,1578.4,0.8483]
[1744794486113,1.26744,1578.1,1578.0,1.27699502]
[1744794486416,1.26744,1578.1,1578.0,1.26778474]
[1744794486615,1.26744,1578.1,1578.0,42.06778474]
[1744794486821,3.39806027,1578.2,1578.1,1.26744]
[1744794486822,4.66548027,1578.2,1578.1,1.26744]
[1744794487022,1.26744,1578.1,1578.0,42.06772474]
[1744794487316,1.6884,1578.1,1578.0,42.06772474]
[1744794487523,0.00926027,1578.2,1578.1,1.26744]
[1744794487726,0.00926027,1578.2,1578.1,3.01334]
[1744794487920,0.00926027,1578.2,1578.1,4.69794]
[1744794488613,1.75606027,1578.2,1578.1,3.89254]
[1744794488822,1.26744,1578.1,1578.0,40.80026474]
[1744794489016,2.92704,1578.1,1578.0,0.00026474]
[1744794489217,9.67384,1578.1,1578.0,0.00026474]
[1744794489422,4.67384,1578.1,1578.0,0.00026474]
[1744794489921,9.67384,1578.1,1578.0,0.00026474]
[1744794490421,14.39584,1578.1,1578.0,0.00026474]
[1744794491529,9.39584,1578.1,1578.0,0.00026474]
[1744794492819,4.67384,1578.1,1578.0,1.26778474]
[1744794493020,0.00926027,1578.2,1578.1,1.26744]
[1744794493230,0.00926027,1578.2,1578.1,2.91664]
[1744794493529,0.00926027,1578.2,1578.1,12.63964]
[1744794495131,1.6824,1578.6,1578.5,1.26712]
[1744794495331,1.67313972,1578.6,1578.5,1.26712]
[1744794495934,2.94017972,1578.6,1578.5,1.26712]
[1744794496528,2.94017972,1578.6,1578.5,2.91762]
[1744794497731,1.267,1578.7,1578.6,1.26698]
[1744794498533,2.8704,1578.7,1578.6,1.26698]
[1744794499128,1.26704,1578.6,1578.5,2.91759]
[1744794499330,2.87044,1578.6,1578.5,2.91759]
[1744794499632,2.87044,1578.6,1578.5,1.26709]
[1744794500633,1.26704,1578.6,1578.5,1.26709]
[1744794500833,1.26704,1578.6,1578.5,2.91699]
[1744794501030,1.7045,1578.7,1578.6,1.26704]
[1744794501228,1.7045,1578.7,1578.6,2.91694]
[1744794501628,1.26676,1579.0,1578.6,6.6499]
[1744794501830,1.26686,1578.9,1578.8,1.26681]
[1744794502124,1.26686,1578.9,1578.8,42.06681]
[1744794502328,2.97127,1579.0,1578.9,1.2668]
[1744794502928,1.2668,1578.9,1578.8,43.72628502]
[1744794503229,1.7646,1578.9,1578.8,43.72628502]
[1744794503425,3.0314,1578.9,1578.8,43.72628502]
[1744794503621,8.0314,1578.9,1578.8,40.80952502]
[1744794503821,8.0314,1578.9,1578.8,0.00952502]
[1744794504031,8.0314,1578.9,1578.4,4.67803]
[1744794504032,1.26712,1578.5,1578.4,1.26713]
[1744794504237,1.26712,1578.5,1578.4,42.06713]
[1744794504437,1.35302255,1578.5,1578.4,42.06713]
[1744794505033,3.11762255,1578.5,1578.4,42.06713]
[1744794505238,1.85050255,1578.5,1578.4,42.06713]
[1744794505432,1.85050255,1578.5,1578.4,43.79593]
[1744794506437,0.08590255,1578.5,1578.4,43.79593]
[1744794506632,0.08590255,1578.5,1578.4,44.66503]
[1744794507336,0.08590255,1578.5,1578.4,47.87283]
[1744794508130,0.08590255,1578.5,1578.4,44.66503]
[1744794508533,1.35302255,1578.5,1578.4,44.66503]
[1744794508728,0.08590255,1578.5,1578.4,44.66503]
[1744794509744,1.35302255,1578.5,1578.4,44.66503]
[1744794509932,1.35302255,1578.5,1578.4,43.79593]
[1744794510240,1.35302255,1578.5,1578.4,42.0672]
[1744794510541,1.35302255,1578.5,1578.4,43.6856]
[1744794511234,0.08590255,1578.5,1578.4,43.6856]
[1744794511435,1.35302255,1578.5,1578.4,43.6856]
[1744794511735,0.08590255,1578.5,1578.4,43.6856]
[1744794512036,0.08590255,1578.5,1578.4,51.8934]
[1744794512637,0.08590255,1578.5,1578.4,43.6856]
[1744794513039,0.08590255,1578.5,1578.4,46.8934]
[1744794513646,0.08590255,1578.5,1578.4,51.8934]
[1744794515647,0.08590255,1578.5,1578.4,46.8934]
[1744794516047,1.35302255,1578.5,1578.4,46.8934]
[1744794516248,0.08590255,1578.5,1578.4,46.8934]
[1744794519451,1.7662,1578.9,1578.8,1.26688]
[1744794519650,3.033,1578.9,1578.8,1.26688]
[1744794519947,3.033,1578.9,1578.8,2.93928]
[1744794520149,1.7662,1578.9,1578.8,2.93928]
[1744794520347,3.033,1578.9,1578.8,43.73928]
[1744794520750,3.033,1578.9,1578.8,42.06688]
[1744794520945,3.033,1578.9,1578.8,40.8]
[1744794521346,3.033,1578.9,1578.8,42.06688]
[1744794521760,1.26688,1578.8,1578.7,1.26691]
[1744794521956,4.59118,1578.8,1578.7,1.26691]
[1744794522250,4.59118,1578.8,1578.7,42.06691]
[1744794522251,2.5169,1578.8,1578.7,42.06691]
[1744794522451,2.5169,1578.8,1578.7,43.73111]
[1744794522650,1.7061,1578.8,1578.7,43.73111]
[1744794523349,1.7061,1578.8,1578.7,42.06691]
[1744794523548,2.97298,1578.8,1578.7,42.06691]
[1744794525153,1.7061,1578.8,1578.7,42.06691]
[1744794526056,2.97298,1578.8,1578.7,43.68151]
[1744794526960,2.97298,1578.8,1578.7,42.06691]
[1744794527362,3.02379331,1578.8,1578.7,42.06691]
[1744794530855,3.16744,1578.7,1578.3,6.38549502]
[1744794531162,4.475,1578.4,1578.3,0.00952502]
[1744794531363,1.31801331,1578.4,1578.3,0.00952502]
[1744794531563,8.76051331,1578.4,1578.3,0.00952502]
[1744794532455,3.76051331,1578.4,1578.3,1.27680502]
[1744794532655,3.76051331,1578.4,1578.3,0.00952502]
[1744794532858,3.16841,1578.2,1577.9,9.5809]
[1744794533167,1.26752,1578.0,1577.9,10.83915972]
[1744794533361,1.26752,1578.0,1577.9,6.12215972]
[1744794533559,1.78991331,1578.0,1577.9,6.12215972]
[1744794533762,1.78991331,1578.0,1577.9,46.92215972]
[1744794534260,3.05743331,1578.0,1577.9,40.8]
[1744794534766,3.05743331,1578.0,1577.9,42.0676]
[1744794535365,3.05743331,1578.0,1577.9,40.8]
[1744794535569,1.78991331,1578.0,1577.8,0.00952502]
[1744794535861,1.31840331,1578.0,1577.9,1.2676]
[1744794536063,0.05081331,1578.0,1577.9,42.0676]
[1744794536268,0.05081331,1578.0,1577.9,47.038]
[1744794536462,0.05081331,1578.0,1577.9,52.5733]
[1744794538273,0.00952502,1578.1,1578.0,1.26752]
[1744794538572,0.00952502,1578.1,1578.0,3.83252]
[1744794538969,1.27696502,1578.1,1578.0,1.26752]
[1744794539263,1.26752,1578.0,1577.9,42.06753]
[1744794539766,2.10602,1578.0,1577.9,42.06753]
[1744794540570,2.10602,1578.0,1577.9,40.8]
[1744794541064,0.8385,1578.0,1577.9,42.0676]
[1744794541268,2.10602,1578.0,1577.9,42.0676]
[1744794541471,1.2676,1577.9,1577.8,0.00952502]
[1744794541867,1.2676,1577.9,1577.8,40.80952502]
[1744794543265,5.31389,1578.0,1577.8,40.80952502]
[1744794543468,1.2676,1577.9,1577.8,42.07714502]
[1744794543667,1.2676,1577.9,1577.8,42.07720502]
[1744794544067,1.2676,1577.9,1577.8,40.80952502]
[1744794544574,1.2676,1577.9,1577.8,0.00952502]
[1744794545373,6.2676,1577.9,1577.8,0.00952502]
[1744794545570,1.2676,1577.9,1577.8,0.00952502]
[1744794545770,1.2676,1577.9,1577.8,1.27720502]
[1744794546072,1.2676,1577.9,1577.8,0.00952502]
[1744794548073,1.2676,1577.9,1577.8,1.27720502]
[1744794548677,1.2676,1577.9,1577.8,0.00952502]
[1744794549378,1.2676,1577.9,1577.8,1.27720502]
[1744794550275,1.2676,1577.9,1577.8,1.72562502]
[1744794550775,1.2676,1577.9,1577.8,0.00952502]
[1744794551881,2.9351,1577.9,1577.8,0.00952502]
[1744794553486,1.26784,1577.6,1577.5,4.715]
[1744794553675,1.26784,1577.6,1577.5,1.7115]
[1744794553874,1.26793,1577.5,1577.4,2.95655]
[1744794554079,1.26793,1577.5,1577.4,43.75655]
[1744794554281,2.93543,1577.5,1577.4,44.2001]
[1744794554585,1.26801,1577.4,1577.3,4.47584]
[1744794554781,2.99411,1577.4,1577.3,4.48536502]
[1744794554985,2.99411,1577.4,1577.3,45.28536502]
[1744794555180,2.99411,1577.4,1577.3,44.01732502]
[1744794555379,2.99411,1577.4,1577.3,40.80952502]
[1744794555581,1.26833,1577.0,1576.9,3.2078]
[1744794555986,1.26841,1576.9,1576.8,40.8]
[1744794556181,2.99451,1576.9,1576.8,40.8]
[1744794556785,1.26849,1576.8,1576.7,8.29611525]
[1744794557082,1.26849,1576.8,1576.7,9.56468525]
[1744794557083,1.7261,1576.8,1576.7,9.56468525]
[1744794557278,2.99459,1576.8,1576.7,11.19028525]
[1744794558387,2.99459,1576.8,1576.7,9.92171525]
[1744794558591,2.99459,1576.8,1576.7,8.29611525]
[1744794559089,2.99459,1576.8,1576.7,0.00952502]
[1744794559888,1.26873,1576.5,1576.4,3.5937]
[1744794560589,2.91793,1576.5,1576.4,3.5937]
[1744794566086,7.63593,1576.5,1576.4,3.5937]
[1744794566586,8.51723,1576.5,1576.4,3.5937]
[1744794569095,1.26873,1576.5,1576.4,3.5937]
[1744794569486,4.47653,1576.5,1576.4,3.5937]
[1744794569682,15.01773,1576.5,1576.4,0.3762638]
[1744794569890,16.72113,1576.5,1576.4,0.3762638]
[1744794570091,1.26881,1576.4,1576.3,0.00952502]
[1744794570291,2.97221,1576.4,1576.3,0.00952502]
[1744794570491,7.97221,1576.4,1576.3,0.00952502]
[1744794573898,2.97221,1576.4,1576.3,0.00952502]
[1744794577002,7.97221,1576.4,1576.3,0.00952502]
[1744794578301,2.97221,1576.4,1576.3,0.00952502]
[1744794579803,3.2078,1576.5,1576.4,1.26881]
[1744794580097,1.7092,1576.9,1576.7,1.26857]
[1744794580303,1.26855,1576.8,1576.7,1.26857]
[1744794580804,1.26855,1576.8,1576.7,6.26857]
[1744794581005,1.26855,1576.8,1576.7,1.26857]
[1744794581907,1.26845,1576.9,1576.8,1.26847]
[1744794582204,1.26841,1576.9,1576.7,1.26851]
[1744794582405,1.26849,1576.8,1576.7,1.26851]
[1744794582602,1.26849,1576.8,1576.6,2.10718]
[1744794582810,6.37883,1576.9,1576.6,0.8386]
[1744794583101,1.26857,1576.7,1576.6,0.8386]
[1744794583401,1.26881,1576.4,1576.3,0.00952502]
[1744794583902,1.26881,1576.4,1576.3,5.00952502]
[1744794584306,1.26865,1576.6,1576.5,1.26871]
[1744794584600,1.26863,1576.7,1576.5,6.2687]
[1744794584807,1.26863,1576.7,1576.5,1.2687]
[1744794585002,1.26865,1576.6,1576.5,1.2687]
[1744794585201,1.26861,1576.7,1576.6,1.26862]
[1744794585505,8.02763,1576.9,1576.3,3.18174502]
[1744794585807,3.17128,1576.8,1576.4,3.2078]
[1744794586104,1.26881,1576.4,1576.3,0.00952502]
[1744794587106,3.01551,1576.4,1576.3,0.00952502]
[1744794587994,7.73151,1576.4,1576.3,0.00952502]
[1744794594111,3.01551,1576.4,1576.3,0.00952502]
[1744794594305,3.2078,1576.7,1576.3,5.00952502]
[1744794594505,1.26863,1576.7,1576.6,1.26863]
[1744794594808,3.17121,1576.9,1576.4,4.85093]
[1744794595007,1.26862,1576.7,1576.6,1.26862]
[1744794595205,1.26865,1576.6,1576.5,2.94756]
[1744794595814,1.26865,1576.6,1576.5,7.94756]
[1744794596512,1.26862,1576.7,1576.6,1.2686]
[1744794596714,1.26862,1576.7,1576.6,2.94755]
[1744794597213,1.26862,1576.7,1576.6,1.6789]
[1744794599013,1.26881,1576.4,1576.3,4.48614502]
[1744794599215,1.26881,1576.4,1576.3,0.87492502]
[1744794599415,1.26881,1576.4,1576.3,2.14381502]
[1744794600513,1.26881,1576.4,1576.3,7.14381502]
[1744794600715,1.26879,1576.5,1576.4,1.26874]
[1744794600907,1.26879,1576.5,1576.4,3.00084]
[1744794601210,1.639,1576.9,1576.6,1.26865]
[1744794601402,17.04023502,1577.0,1576.5,1.7321]
[1744794601403,7.93332502,1577.0,1576.5,1.7321]
[1744794601607,1.26865,1576.6,1576.5,3.00078]